[Event "*** Titled Tuesday Blitz"]
[Site "Chess.com"]
[Date "2020.04.28"]
[Round "9"]
[White "Bubi6"]
[Black "vaishali2001"]
[Result "0-1"]
[WhiteElo "2634"]
[BlackElo "2517"]
[TimeControl "180+1"]
[EndTime "11:46:36 PDT"]
[Termination "vaishali2001 won on time"]

1. e4 {[%clk 0:03:00.9]} 1... e5 {[%clk 0:02:59.3]} 2. Nf3 {[%clk 0:03:00.7]}
2... Nc6 {[%clk 0:02:58.7]} 3. Bc4 {[%clk 0:02:59.9]} 3... Nf6 {[%clk
0:02:56.9]} 4. d4 {[%clk 0:02:59.2]} 4... exd4 {[%clk 0:02:55.7]} 5. e5 {[%clk
0:03:00.1]} 5... d5 {[%clk 0:02:46.5]} 6. Bb5 {[%clk 0:03:00.2]} 6... Ne4 {[%clk
0:02:46.6]} 7. Nxd4 {[%clk 0:02:59.6]} 7... Bd7 {[%clk 0:02:46.4]} 8. Bxc6
{[%clk 0:02:59.2]} 8... bxc6 {[%clk 0:02:46]} 9. O-O {[%clk 0:02:59.7]} 9... Be7
{[%clk 0:02:06.3]} 10. f3 {[%clk 0:02:59.2]} 10... Nc5 {[%clk 0:02:05.2]} 11. f4
{[%clk 0:02:59.5]} 11... f5 {[%clk 0:01:49.8]} 12. exf6 {[%clk 0:02:30.3]} 12...
Bxf6 {[%clk 0:01:48.7]} 13. Re1+ {[%clk 0:02:30.2]} 13... Ne4 {[%clk 0:01:47.3]}
14. Nc3 {[%clk 0:02:27.4]} 14... O-O {[%clk 0:01:45.9]} 15. Nxe4 {[%clk
0:02:20]} 15... dxe4 {[%clk 0:01:46.8]} 16. Be3 {[%clk 0:02:19.8]} 16... c5
{[%clk 0:01:36.3]} 17. Nb3 {[%clk 0:02:18.4]} 17... Bxb2 {[%clk 0:01:28.8]} 18.
Rb1 {[%clk 0:02:08.4]} 18... Bc3 {[%clk 0:01:25.9]} 19. Rf1 {[%clk 0:02:08.2]}
19... Bb5 {[%clk 0:01:08.9]} 20. Nxc5 {[%clk 0:01:42.1]} 20... Bxf1 {[%clk
0:01:05.1]} 21. Qxf1 {[%clk 0:01:42.4]} 21... Qd5 {[%clk 0:01:01.2]} 22. Rb3
{[%clk 0:00:53.6]} 22... Bd4 {[%clk 0:00:58.1]} 23. Qf2 {[%clk 0:00:54]} 23...
Bxc5 {[%clk 0:00:48.3]} 24. Bxc5 {[%clk 0:00:52.6]} 24... Qd1+ {[%clk
0:00:48.7]} 25. Qf1 {[%clk 0:00:53.1]} 25... Qxf1+ {[%clk 0:00:49]} 26. Kxf1
{[%clk 0:00:53.7]} 26... Rxf4+ {[%clk 0:00:49.5]} 27. Ke2 {[%clk 0:00:54.3]}
27... Rf5 {[%clk 0:00:45.4]} 28. Be3 {[%clk 0:00:52.1]} 28... a5 {[%clk
0:00:44.6]} 29. c4 {[%clk 0:00:50.9]} 29... Rd8 {[%clk 0:00:40.1]} 30. Rb7
{[%clk 0:00:49.1]} 30... Rd7 {[%clk 0:00:37.3]} 31. c5 {[%clk 0:00:48.2]} 31...
Kf7 {[%clk 0:00:33.3]} 32. Ra7 {[%clk 0:00:46.9]} 32... Ke6 {[%clk 0:00:23.2]}
33. Rxa5 {[%clk 0:00:46.5]} 33... Rd8 {[%clk 0:00:21.6]} 34. a4 {[%clk 0:00:43]}
34... Rb8 {[%clk 0:00:19.8]} 35. Ra6+ {[%clk 0:00:17.4]} 35... Kd5 {[%clk
0:00:17.5]} 36. c6 {[%clk 0:00:15.3]} 36... Rb2+ {[%clk 0:00:16.8]} 37. Bd2
{[%clk 0:00:15.8]} 37... Kc4 {[%clk 0:00:10.1]} 38. Ke3 {[%clk 0:00:02.8]} 38...
Rd5 {[%clk 0:00:10.2]} 39. Ba5 {[%clk 0:00:03.2]} 39... Rd3+ {[%clk 0:00:08.2]}
40. Kxe4 {[%clk 0:00:03.1]} 40... Re2+ {[%clk 0:00:07.9]} 0-1

[Event "*** Titled Tuesday Blitz"]
[Site "Chess.com"]
[Date "2020.04.28"]
[Round "9"]
[White "Firehand33"]
[Black "Winehouse83"]
[Result "1/2-1/2"]
[WhiteElo "2712"]
[BlackElo "2532"]
[TimeControl "180+1"]
[EndTime "11:46:37 PDT"]
[Termination "Game drawn by stalemate"]

1. b3 {[%clk 0:03:00.9]} 1... e5 {[%clk 0:02:45.7]} 2. Bb2 {[%clk 0:03:01.8]}
2... Nc6 {[%clk 0:02:45.2]} 3. e3 {[%clk 0:03:01.1]} 3... Nf6 {[%clk 0:02:44.1]}
4. Nf3 {[%clk 0:02:59.6]} 4... Bd6 {[%clk 0:02:42.3]} 5. d3 {[%clk 0:02:58.8]}
5... O-O {[%clk 0:02:41]} 6. Nbd2 {[%clk 0:02:58.5]} 6... a5 {[%clk 0:02:33.9]}
7. Nc4 {[%clk 0:02:57.3]} 7... Qe7 {[%clk 0:02:33.6]} 8. Nxd6 {[%clk 0:02:57]}
8... Qxd6 {[%clk 0:02:33.8]} 9. a4 {[%clk 0:02:50.2]} 9... Qe7 {[%clk
0:02:32.1]} 10. Be2 {[%clk 0:02:46.8]} 10... d6 {[%clk 0:02:31.4]} 11. O-O
{[%clk 0:02:47.4]} 11... b6 {[%clk 0:02:28.3]} 12. Qd2 {[%clk 0:02:43.9]} 12...
Bb7 {[%clk 0:02:28.4]} 13. e4 {[%clk 0:02:44.1]} 13... Nd8 {[%clk 0:02:24.5]}
14. Nh4 {[%clk 0:02:43.2]} 14... Nxe4 {[%clk 0:02:20]} 15. Nf5 {[%clk
0:02:40.5]} 15... Nxd2 {[%clk 0:02:16.1]} 16. Nxe7+ {[%clk 0:02:40.6]} 16... Kh8
{[%clk 0:02:16.1]} 17. Rfd1 {[%clk 0:02:40.7]} 17... g6 {[%clk 0:02:12.3]} 18.
f4 {[%clk 0:02:29.6]} 18... f6 {[%clk 0:02:03.8]} 19. Rxd2 {[%clk 0:02:22.1]}
19... Rf7 {[%clk 0:01:48.7]} 20. fxe5 {[%clk 0:02:21.7]} 20... fxe5 {[%clk
0:01:46.8]} 21. Nxg6+ {[%clk 0:02:21.2]} 21... hxg6 {[%clk 0:01:46.3]} 22. d4
{[%clk 0:02:21.3]} 22... Re7 {[%clk 0:01:21.1]} 23. dxe5 {[%clk 0:02:20.5]}
23... dxe5 {[%clk 0:01:22]} 24. Bc4 {[%clk 0:02:17.2]} 24... Kg7 {[%clk
0:01:18.2]} 25. Re1 {[%clk 0:02:06.9]} 25... Nf7 {[%clk 0:01:12.9]} 26. Bxf7
{[%clk 0:02:02.2]} 26... Kxf7 {[%clk 0:01:12.6]} 27. Rxe5 {[%clk 0:02:01]} 27...
Rae8 {[%clk 0:01:11.3]} 28. Rf2+ {[%clk 0:01:49.5]} 28... Kg8 {[%clk 0:01:09.3]}
29. Rfe2 {[%clk 0:01:49]} 29... Rxe5 {[%clk 0:01:03]} 30. Bxe5 {[%clk
0:01:48.7]} 30... Re7 {[%clk 0:00:51.3]} 31. Kf2 {[%clk 0:01:48.5]} 31... Bc8
{[%clk 0:00:41]} 32. Bf4 {[%clk 0:01:43.3]} 32... Kf7 {[%clk 0:00:27]} 33. Rxe7+
{[%clk 0:01:42.2]} 33... Kxe7 {[%clk 0:00:27.9]} 34. Bxc7 {[%clk 0:01:39.9]}
34... Bf5 {[%clk 0:00:27.7]} 35. Bxb6 {[%clk 0:01:32.4]} 35... Bxc2 {[%clk
0:00:27.6]} 36. Bxa5 {[%clk 0:01:32.1]} 36... Bxb3 {[%clk 0:00:26.9]} 37. Bb4+
{[%clk 0:01:32.4]} 37... Kd7 {[%clk 0:00:26.7]} 38. a5 {[%clk 0:01:32.6]} 38...
Kc6 {[%clk 0:00:26.4]} 39. Ke3 {[%clk 0:01:29.4]} 39... Kb5 {[%clk 0:00:24]} 40.
Be1 {[%clk 0:01:27.6]} 40... Bd5 {[%clk 0:00:24.4]} 41. g4 {[%clk 0:01:26.9]}
41... Ba2 {[%clk 0:00:21.9]} 42. Kf4 {[%clk 0:01:26.5]} 42... Bb1 {[%clk
0:00:21.9]} 43. Kg5 {[%clk 0:01:26.3]} 43... Bc2 {[%clk 0:00:22.2]} 44. h3
{[%clk 0:01:21.1]} 44... Bb1 {[%clk 0:00:22.4]} 45. Kf6 {[%clk 0:01:20.7]} 45...
Ka6 {[%clk 0:00:21.5]} 46. h4 {[%clk 0:01:08.1]} 46... Bc2 {[%clk 0:00:21.5]}
47. Kg5 {[%clk 0:01:06.5]} 47... Bb1 {[%clk 0:00:21.6]} 48. Bc3 {[%clk
0:01:05.7]} 48... Bc2 {[%clk 0:00:21.7]} 49. Kf4 {[%clk 0:01:04.9]} 49... Bb1
{[%clk 0:00:22.1]} 50. g5 {[%clk 0:01:03.9]} 50... Bc2 {[%clk 0:00:21.6]} 51.
Ke5 {[%clk 0:01:04.1]} 51... Bb1 {[%clk 0:00:18.9]} 52. Be1 {[%clk 0:01:03.7]}
52... Bc2 {[%clk 0:00:19.1]} 53. Kd4 {[%clk 0:01:03.5]} 53... Bb1 {[%clk
0:00:19.4]} 54. Kc3 {[%clk 0:01:03.3]} 54... Bf5 {[%clk 0:00:19.5]} 55. Kd4
{[%clk 0:01:03.5]} 55... Bb1 {[%clk 0:00:19.8]} 56. Ke5 {[%clk 0:01:04]} 56...
Bc2 {[%clk 0:00:20.1]} 57. Kf6 {[%clk 0:01:03.8]} 57... Bb1 {[%clk 0:00:20.4]}
58. Kg7 {[%clk 0:01:04.3]} 58... Bc2 {[%clk 0:00:20.3]} 59. Kh6 {[%clk
0:01:04.8]} 59... Bd3 {[%clk 0:00:20.1]} 60. h5 {[%clk 0:01:04.9]} 60... gxh5
{[%clk 0:00:20.2]} 61. Kxh5 {[%clk 0:01:05.1]} 61... Bc2 {[%clk 0:00:20.7]} 62.
Kh6 {[%clk 0:01:04.3]} 62... Bd3 {[%clk 0:00:20.9]} 63. Kg7 {[%clk 0:01:04.9]}
63... Bc2 {[%clk 0:00:21.4]} 64. Kf6 {[%clk 0:01:05.6]} 64... Bd3 {[%clk
0:00:22]} 65. Ke5 {[%clk 0:01:06.2]} 65... Bc2 {[%clk 0:00:22.5]} 66. Kd4 {[%clk
0:01:06.8]} 66... Bb1 {[%clk 0:00:22.5]} 67. Bd2 {[%clk 0:01:06.7]} 67... Bg6
{[%clk 0:00:22.6]} 68. Ke5 {[%clk 0:01:06.9]} 68... Bb1 {[%clk 0:00:22.8]} 69.
Kf6 {[%clk 0:01:07.1]} 69... Bd3 {[%clk 0:00:22.8]} 70. g6 {[%clk 0:01:07.5]}
70... Bxg6 {[%clk 0:00:22.8]} 71. Kxg6 {[%clk 0:01:08]} 71... Ka7 {[%clk
0:00:23.4]} 72. Kf6 {[%clk 0:01:08.4]} 72... Kb7 {[%clk 0:00:23.7]} 73. Ke6
{[%clk 0:01:09]} 73... Ka8 {[%clk 0:00:21.8]} 74. Kd6 {[%clk 0:01:09.4]} 74...
Kb8 {[%clk 0:00:22.4]} 75. Kc6 {[%clk 0:01:09.9]} 75... Ka8 {[%clk 0:00:23.1]}
76. Kb6 {[%clk 0:01:10.5]} 76... Kb8 {[%clk 0:00:23.5]} 77. a6 {[%clk
0:01:11.2]} 77... Ka8 {[%clk 0:00:24.2]} 78. a7 {[%clk 0:01:11.8]} 1/2-1/2

[Event "*** Titled Tuesday Blitz"]
[Site "Chess.com"]
[Date "2020.04.28"]
[Round "9"]
[White "vanyakuba"]
[Black "vovachesss"]
[Result "0-1"]
[WhiteElo "2400"]
[BlackElo "2559"]
[TimeControl "180+1"]
[EndTime "11:46:37 PDT"]
[Termination "vovachesss won on time"]

1. e4 {[%clk 0:03:00]} 1... Nf6 {[%clk 0:03:00.2]} 2. e5 {[%clk 0:02:59.4]} 2...
Nd5 {[%clk 0:03:00.8]} 3. d4 {[%clk 0:02:59.8]} 3... d6 {[%clk 0:03:01.1]} 4. c4
{[%clk 0:02:58.4]} 4... Nb6 {[%clk 0:03:01.2]} 5. exd6 {[%clk 0:02:59.3]} 5...
exd6 {[%clk 0:03:01.3]} 6. Nc3 {[%clk 0:02:59.5]} 6... Nc6 {[%clk 0:03:01.8]} 7.
Be3 {[%clk 0:02:58.5]} 7... Be7 {[%clk 0:03:02.5]} 8. Nf3 {[%clk 0:02:56.5]}
8... O-O {[%clk 0:03:01.4]} 9. Be2 {[%clk 0:02:56]} 9... Bf5 {[%clk 0:02:52.2]}
10. O-O {[%clk 0:02:52.9]} 10... Bf6 {[%clk 0:02:51.5]} 11. d5 {[%clk
0:02:32.8]} 11... Ne5 {[%clk 0:02:48.6]} 12. Nd4 {[%clk 0:02:32.8]} 12... Bg6
{[%clk 0:02:45.3]} 13. b3 {[%clk 0:02:31.2]} 13... Re8 {[%clk 0:02:43.8]} 14.
Qd2 {[%clk 0:02:14.4]} 14... Ned7 {[%clk 0:02:19]} 15. f4 {[%clk 0:01:42.2]}
15... Be4 {[%clk 0:02:17.1]} 16. Nxe4 {[%clk 0:01:35.3]} 16... Rxe4 {[%clk
0:02:16.6]} 17. Bf3 {[%clk 0:01:35.5]} 17... Re8 {[%clk 0:02:16.8]} 18. Rae1
{[%clk 0:01:30.7]} 18... Nc5 {[%clk 0:02:16]} 19. Bf2 {[%clk 0:01:30.9]} 19...
Qd7 {[%clk 0:01:52.3]} 20. Qc2 {[%clk 0:01:23.6]} 20... a5 {[%clk 0:01:44]} 21.
a3 {[%clk 0:01:16.5]} 21... g6 {[%clk 0:01:29.4]} 22. b4 {[%clk 0:01:01.6]}
22... axb4 {[%clk 0:01:20.4]} 23. axb4 {[%clk 0:01:02.5]} 23... Na6 {[%clk
0:01:20.8]} 24. Rb1 {[%clk 0:01:02.9]} 24... Re7 {[%clk 0:01:13.7]} 25. c5
{[%clk 0:00:47.6]} 25... dxc5 {[%clk 0:00:50.2]} 26. bxc5 {[%clk 0:00:48.5]}
26... Bxd4 {[%clk 0:00:20.9]} 27. Bxd4 {[%clk 0:00:48.1]} 27... Nxd5 {[%clk
0:00:21.8]} 28. Rxb7 {[%clk 0:00:25.3]} 28... Nxf4 {[%clk 0:00:14]} 29. Bf6
{[%clk 0:00:19.5]} 29... Ree8 {[%clk 0:00:08.2]} 30. Qc4 {[%clk 0:00:16.3]}
30... Qf5 {[%clk 0:00:05.6]} 31. Bd1 {[%clk 0:00:05.7]} 31... Qxf6 {[%clk
0:00:04.8]} 32. Qxf4 {[%clk 0:00:05.5]} 32... Qxf4 {[%clk 0:00:04.7]} 33. Rxf4
{[%clk 0:00:06.4]} 33... Nxc5 {[%clk 0:00:05.2]} 34. Rxc7 {[%clk 0:00:06.2]}
34... Ne6 {[%clk 0:00:05.5]} 35. Rfxf7 {[%clk 0:00:04.4]} 35... Nxc7 {[%clk
0:00:05.3]} 36. Rxc7 {[%clk 0:00:04.8]} 36... Re1+ {[%clk 0:00:05.6]} 0-1

[Event "*** Titled Tuesday Blitz"]
[Site "Chess.com"]
[Date "2020.04.28"]
[Round "9"]
[White "BvsN"]
[Black "GamayevOleg"]
[Result "1-0"]
[WhiteElo "2388"]
[BlackElo "2492"]
[TimeControl "180+1"]
[EndTime "11:46:37 PDT"]
[Termination "BvsN won by checkmate"]

1. d4 {[%clk 0:03:00.9]} 1... d6 {[%clk 0:03:00.9]} 2. e4 {[%clk 0:03:00.2]}
2... Nf6 {[%clk 0:03:01.4]} 3. Nc3 {[%clk 0:03:00.4]} 3... e5 {[%clk 0:03:02.3]}
4. Nf3 {[%clk 0:02:59.3]} 4... exd4 {[%clk 0:03:02.2]} 5. Nxd4 {[%clk
0:02:58.8]} 5... Be7 {[%clk 0:03:02.5]} 6. g3 {[%clk 0:02:58.8]} 6... O-O {[%clk
0:03:02.9]} 7. Bg2 {[%clk 0:02:59.3]} 7... Re8 {[%clk 0:03:03.4]} 8. O-O {[%clk
0:02:59.3]} 8... h6 {[%clk 0:03:03.9]} 9. h3 {[%clk 0:02:57.3]} 9... Bf8 {[%clk
0:03:04.2]} 10. Be3 {[%clk 0:02:57]} 10... c6 {[%clk 0:03:04.6]} 11. Nde2 {[%clk
0:02:50]} 11... a5 {[%clk 0:03:02.5]} 12. g4 {[%clk 0:02:49.9]} 12... Na6 {[%clk
0:03:02.4]} 13. Ng3 {[%clk 0:02:49.6]} 13... Nb4 {[%clk 0:03:01.5]} 14. a3
{[%clk 0:02:48]} 14... Na6 {[%clk 0:03:01.9]} 15. f4 {[%clk 0:02:47.7]} 15...
Qc7 {[%clk 0:02:56.5]} 16. f5 {[%clk 0:02:43.7]} 16... Nd7 {[%clk 0:02:54.9]}
17. h4 {[%clk 0:02:38.5]} 17... Ne5 {[%clk 0:02:53.7]} 18. g5 {[%clk 0:02:37.7]}
18... d5 {[%clk 0:02:47.2]} 19. exd5 {[%clk 0:02:33]} 19... Nc4 {[%clk
0:02:46.7]} 20. Bf4 {[%clk 0:02:33.3]} 20... Bd6 {[%clk 0:02:44.5]} 21. Bxd6
{[%clk 0:02:19.5]} 21... Qxd6 {[%clk 0:02:45.4]} 22. Qg4 {[%clk 0:02:16.1]}
22... Ne3 {[%clk 0:02:41.1]} 23. Qf3 {[%clk 0:02:10]} 23... Nxf1 {[%clk
0:02:39]} 24. Rxf1 {[%clk 0:02:09.9]} 24... hxg5 {[%clk 0:02:36.7]} 25. hxg5
{[%clk 0:02:07.7]} 25... Nc5 {[%clk 0:02:36]} 26. dxc6 {[%clk 0:02:02]} 26...
bxc6 {[%clk 0:02:32]} 27. Qxc6 {[%clk 0:01:58]} 27... Qxc6 {[%clk 0:02:30.4]}
28. Bxc6 {[%clk 0:01:57.7]} 28... Ba6 {[%clk 0:02:30.5]} 29. Rc1 {[%clk
0:01:35]} 29... Re3 {[%clk 0:02:23.9]} 30. Kf2 {[%clk 0:01:17]} 30... Rxc3
{[%clk 0:02:18.5]} 31. bxc3 {[%clk 0:01:09]} 31... Rc8 {[%clk 0:02:18.1]} 32.
Bd5 {[%clk 0:01:04.7]} 32... Na4 {[%clk 0:02:17.5]} 33. c4 {[%clk 0:00:56.8]}
33... Bxc4 {[%clk 0:02:16.3]} 34. Bxc4 {[%clk 0:00:56.1]} 34... Rxc4 {[%clk
0:02:17.2]} 35. g6 {[%clk 0:00:44.3]} 35... Nc5 {[%clk 0:02:15]} 36. Rd1 {[%clk
0:00:35.1]} 36... Rxc2+ {[%clk 0:02:07.4]} 37. Kf3 {[%clk 0:00:35]} 37... fxg6
{[%clk 0:02:07.4]} 38. fxg6 {[%clk 0:00:33.3]} 38... Kf8 {[%clk 0:02:06.1]} 39.
Nf5 {[%clk 0:00:29.3]} 39... Ne6 {[%clk 0:01:51.1]} 40. Rd7 {[%clk 0:00:23.5]}
40... Rc3+ {[%clk 0:01:43.5]} 41. Kf2 {[%clk 0:00:18.4]} 41... Rc5 {[%clk
0:01:38]} 42. Rf7+ {[%clk 0:00:16]} 42... Kg8 {[%clk 0:01:22.5]} 43. Ne7+ {[%clk
0:00:14.5]} 43... Kh8 {[%clk 0:01:22.9]} 44. Rf3 {[%clk 0:00:12.4]} 44... Rc2+
{[%clk 0:01:13.5]} 45. Kg1 {[%clk 0:00:11.7]} 45... Rc1+ {[%clk 0:01:13]} 46.
Kg2 {[%clk 0:00:11.4]} 46... Rc2+ {[%clk 0:01:13.3]} 47. Kf1 {[%clk 0:00:08]}
47... Rc1+ {[%clk 0:01:10.7]} 48. Kf2 {[%clk 0:00:04.6]} 48... Rc2+ {[%clk
0:01:09.5]} 49. Kg1 {[%clk 0:00:04.8]} 49... Rc1+ {[%clk 0:01:09.3]} 50. Kf2
{[%clk 0:00:04.4]} 50... Rh1 {[%clk 0:01:08.4]} 51. Rb3 {[%clk 0:00:02.9]} 51...
Rd1 {[%clk 0:01:00.9]} 52. Rb8+ {[%clk 0:00:02.6]} 52... Rd8 {[%clk 0:01:00.6]}
53. Rb3 {[%clk 0:00:02.8]} 53... Rd2+ {[%clk 0:00:58.9]} 54. Ke1 {[%clk
0:00:02.6]} 54... Re2+ {[%clk 0:00:54.9]} 55. Kd1 {[%clk 0:00:01.6]} 55... Rh2
{[%clk 0:00:49.5]} 56. Rb8+ {[%clk 0:00:01.4]} 56... Nd8 {[%clk 0:00:50.1]} 57.
Rxd8# {[%clk 0:00:01.7]} 1-0

[Event "*** Titled Tuesday Blitz"]
[Site "Chess.com"]
[Date "2020.04.28"]
[Round "9"]
[White "GMKrikor"]
[Black "GeorgMeier"]
[Result "0-1"]
[WhiteElo "2753"]
[BlackElo "3013"]
[TimeControl "180+1"]
[EndTime "11:46:38 PDT"]
[Termination "GeorgMeier won on time"]

1. Nf3 {[%clk 0:03:00.9]} 1... d5 {[%clk 0:02:58.9]} 2. c4 {[%clk 0:03:01]} 2...
e6 {[%clk 0:02:58.3]} 3. e3 {[%clk 0:02:59.4]} 3... Nf6 {[%clk 0:02:58.4]} 4. b3
{[%clk 0:02:57.4]} 4... Bd6 {[%clk 0:02:55.4]} 5. Bb2 {[%clk 0:02:57.2]} 5...
O-O {[%clk 0:02:55.6]} 6. Nc3 {[%clk 0:02:57.7]} 6... a6 {[%clk 0:02:51.6]} 7.
Rc1 {[%clk 0:02:49.1]} 7... b6 {[%clk 0:02:48.9]} 8. cxd5 {[%clk 0:02:49.2]}
8... exd5 {[%clk 0:02:48.7]} 9. d4 {[%clk 0:02:49.8]} 9... Nbd7 {[%clk
0:02:44.6]} 10. g3 {[%clk 0:02:47]} 10... Bb7 {[%clk 0:02:43.1]} 11. Bg2 {[%clk
0:02:47.2]} 11... Qe7 {[%clk 0:02:42.6]} 12. O-O {[%clk 0:02:47.3]} 12... Ne4
{[%clk 0:02:39.7]} 13. Ne2 {[%clk 0:02:30.6]} 13... f5 {[%clk 0:02:28.2]} 14.
Nf4 {[%clk 0:02:30.5]} 14... a5 {[%clk 0:02:17.1]} 15. a4 {[%clk 0:02:20.1]}
15... Rac8 {[%clk 0:02:09]} 16. Nd3 {[%clk 0:02:12.5]} 16... Ba6 {[%clk
0:02:05.4]} 17. Re1 {[%clk 0:02:12.5]} 17... Ndf6 {[%clk 0:01:54.6]} 18. Nfe5
{[%clk 0:02:07.5]} 18... c5 {[%clk 0:01:52.9]} 19. Nf4 {[%clk 0:01:51.6]} 19...
c4 {[%clk 0:01:52.1]} 20. bxc4 {[%clk 0:01:50.1]} 20... dxc4 {[%clk 0:01:51.1]}
21. f3 {[%clk 0:01:17.3]} 21... Ng5 {[%clk 0:01:50.3]} 22. Qc2 {[%clk 0:01:15]}
22... Bb4 {[%clk 0:01:15.7]} 23. Bc3 {[%clk 0:01:07.9]} 23... Ne6 {[%clk
0:01:08.5]} 24. Rb1 {[%clk 0:00:33.5]} 24... Bxc3 {[%clk 0:00:59.9]} 25. Qxc3
{[%clk 0:00:32.2]} 25... Nxf4 {[%clk 0:00:59.8]} 26. gxf4 {[%clk 0:00:30.5]}
26... Nd5 {[%clk 0:00:59.9]} 27. Qc1 {[%clk 0:00:26.5]} 27... c3 {[%clk
0:00:57.8]} 28. Bf1 {[%clk 0:00:18.4]} 28... Bxf1 {[%clk 0:00:38.8]} 29. Rxf1
{[%clk 0:00:19.3]} 29... Nb4 {[%clk 0:00:33.5]} 30. Rb3 {[%clk 0:00:16.5]} 30...
c2 {[%clk 0:00:32.3]} 31. Qd2 {[%clk 0:00:15.8]} 31... Qe6 {[%clk 0:00:26.7]}
32. Rb2 {[%clk 0:00:15]} 32... Rc7 {[%clk 0:00:24.8]} 33. Rc1 {[%clk 0:00:14.9]}
33... Rfc8 {[%clk 0:00:23.4]} 34. Kf2 {[%clk 0:00:13.8]} 34... Rc3 {[%clk
0:00:23.3]} 35. Kg2 {[%clk 0:00:07.9]} 35... R8c7 {[%clk 0:00:19.8]} 36. Qe2
{[%clk 0:00:08.4]} 36... h6 {[%clk 0:00:19.4]} 37. Kh1 {[%clk 0:00:08.1]} 37...
Kh7 {[%clk 0:00:19.7]} 38. Qf2 {[%clk 0:00:07.5]} 38... Rb3 {[%clk 0:00:14.1]}
39. Rxb3 {[%clk 0:00:04.3]} 39... Qxb3 {[%clk 0:00:15]} 40. Qd2 {[%clk
0:00:04.6]} 40... Na2 {[%clk 0:00:13.3]} 41. Rg1 {[%clk 0:00:02]} 41... c1=Q
{[%clk 0:00:12]} 42. Rxc1 {[%clk 0:00:02.2]} 42... Nxc1 {[%clk 0:00:12.9]} 0-1

[Event "*** Titled Tuesday Blitz"]
[Site "Chess.com"]
[Date "2020.04.28"]
[Round "9"]
[White "Maybe00"]
[Black "grzechu96"]
[Result "0-1"]
[WhiteElo "2764"]
[BlackElo "2627"]
[TimeControl "180+1"]
[EndTime "11:46:39 PDT"]
[Termination "grzechu96 won by resignation"]

1. d4 {[%clk 0:03:00.9]} 1... d5 {[%clk 0:02:57.5]} 2. c4 {[%clk 0:03:00]} 2...
c6 {[%clk 0:02:57.3]} 3. Nf3 {[%clk 0:02:59.7]} 3... Nf6 {[%clk 0:02:57.5]} 4.
Nc3 {[%clk 0:02:59.6]} 4... dxc4 {[%clk 0:02:57.9]} 5. e4 {[%clk 0:02:58]} 5...
b5 {[%clk 0:02:56.3]} 6. Be2 {[%clk 0:02:58.3]} 6... b4 {[%clk 0:02:45.5]} 7.
Na4 {[%clk 0:02:57.7]} 7... Nxe4 {[%clk 0:02:45.8]} 8. Bxc4 {[%clk 0:02:58]}
8... e6 {[%clk 0:02:43.4]} 9. O-O {[%clk 0:02:57.8]} 9... Be7 {[%clk 0:02:43.2]}
10. Qe2 {[%clk 0:02:49.2]} 10... Nf6 {[%clk 0:02:42.6]} 11. Rd1 {[%clk
0:02:42.7]} 11... O-O {[%clk 0:02:41.4]} 12. Ne5 {[%clk 0:02:43.1]} 12... Bb7
{[%clk 0:02:41.3]} 13. Bg5 {[%clk 0:02:41.4]} 13... Nbd7 {[%clk 0:02:39.6]} 14.
Bb3 {[%clk 0:02:30.9]} 14... Nxe5 {[%clk 0:02:31.5]} 15. Bxf6 {[%clk 0:02:26.9]}
15... Nd7 {[%clk 0:02:29.1]} 16. Bxe7 {[%clk 0:02:23.2]} 16... Qxe7 {[%clk
0:02:30]} 17. Rac1 {[%clk 0:02:23.5]} 17... Rfc8 {[%clk 0:02:28.2]} 18. Qe4
{[%clk 0:02:19.1]} 18... a5 {[%clk 0:02:21]} 19. Nc5 {[%clk 0:02:16]} 19... Ba6
{[%clk 0:02:04.1]} 20. Nxd7 {[%clk 0:01:06]} 20... Qxd7 {[%clk 0:02:03.4]} 21.
Rc5 {[%clk 0:01:04.5]} 21... Bb5 {[%clk 0:01:59.5]} 22. Bc2 {[%clk 0:00:55.8]}
22... g6 {[%clk 0:01:56.5]} 23. h4 {[%clk 0:00:56]} 23... Rd8 {[%clk 0:01:47.5]}
24. h5 {[%clk 0:00:54.2]} 24... Qd6 {[%clk 0:01:47.6]} 25. a4 {[%clk 0:00:47.6]}
25... bxa3 {[%clk 0:01:47]} 26. bxa3 {[%clk 0:00:48.5]} 26... a4 {[%clk
0:01:44.8]} 27. g3 {[%clk 0:00:46]} 27... Rab8 {[%clk 0:01:39.9]} 28. Kg2 {[%clk
0:00:40.2]} 28... Qe7 {[%clk 0:01:36.8]} 29. hxg6 {[%clk 0:00:29.9]} 29... hxg6
{[%clk 0:01:36.8]} 30. Qe5 {[%clk 0:00:30.3]} 30... Qf8 {[%clk 0:01:27]} 31. Qf4
{[%clk 0:00:19.9]} 31... Qg7 {[%clk 0:01:24.8]} 32. Re5 {[%clk 0:00:18.9]} 32...
Rb7 {[%clk 0:01:19.4]} 33. Be4 {[%clk 0:00:12.4]} 33... Rbd7 {[%clk 0:01:19.3]}
34. Bf3 {[%clk 0:00:13]} 34... Rd6 {[%clk 0:01:01.3]} 35. g4 {[%clk 0:00:13.3]}
35... Bc4 {[%clk 0:00:50.2]} 36. g5 {[%clk 0:00:13.1]} 36... Bb3 {[%clk
0:00:48.9]} 37. Rh1 {[%clk 0:00:12]} 37... Rxd4 {[%clk 0:00:47.6]} 38. Qg3
{[%clk 0:00:12]} 38... Rd3 {[%clk 0:00:30]} 39. Qf4 {[%clk 0:00:07.8]} 39...
Rxf3 {[%clk 0:00:19.4]} 40. Kxf3 {[%clk 0:00:08.7]} 40... Bd5+ {[%clk
0:00:19.8]} 41. Rxd5 {[%clk 0:00:09.2]} 41... cxd5 {[%clk 0:00:20.4]} 42. Kg2
{[%clk 0:00:08.6]} 42... Qc3 {[%clk 0:00:18.7]} 43. f3 {[%clk 0:00:07.5]} 43...
Qb2+ {[%clk 0:00:17.6]} 44. Kg3 {[%clk 0:00:08]} 44... Qc3 {[%clk 0:00:17.3]}
45. Rh2 {[%clk 0:00:07.8]} 45... Rc8 {[%clk 0:00:17.8]} 46. Qh4 {[%clk
0:00:07.7]} 46... Qe5+ {[%clk 0:00:17.6]} 47. Kg4 {[%clk 0:00:08]} 47... Rc4+
{[%clk 0:00:17.2]} 0-1